Workbook

Sheet Schedule
A1: 5/4-9 Compressed Work Schedule [Company Name]
A3: Period Start Date : | B3: 2010-03-29 | F3: (Must begin on a Monday)
B5: =B3 -> 2010-03-29 | C5: =B5+1 -> 2010-03-30 | D5: 2010-03-31 | E5: 2010-04-01 | F5: 2010-04-02 | G5: 2010-04-03 | H5: 2010-04-04 | I5: 2010-04-05 | J5: 2010-04-06 | K5: 2010-04-07 | L5: 2010-04-08 | M5: 2010-04-09 | N5: 2010-04-10 | O5: 2010-04-11 | P5: 2010-04-12 | Q5: 2010-04-13 | R5: 2010-04-14 | S5: 2010-04-15 | T5: 2010-04-16 | U5: 2010-04-17 | V5: 2010-04-18 | W5: 2010-04-19 | X5: 2010-04-20 | Y5: 2010-04-21 | Z5: 2010-04-22 | AA5: 2010-04-23 | AB5: 2010-04-24 | AC5: 2010-04-25 | AD5: Paid | AE5: Total | AG5: Shift Hours | AH5: Shift Hours | AI5: Shift Hours | AJ5: Shift Hours | AK5: Shift Hours | AL5: Shift Hours | AM5: Shift Hours | AN5: Shift Hours | AO5: Shift Hours | AP5: Shift Hours | AQ5: Shift Hours | AR5: Shift Hours | AS5: Shift Hours | AT5: Shift Hours | AU5: Shift Hours | AV5: Shift Hours | AW5: Shift Hours | AX5: Shift Hours | AY5: Shift Hours | AZ5: Shift Hours | BA5: Shift Hours | BB5: Shift Hours | BC5: Shift Hours | BD5: Shift Hours | BE5: Shift Hours | BF5: Shift Hours | BG5: Shift Hours | BH5: Shift Hours | BJ5: Labor Cost | BK5: Labor Cost | BL5: Labor Cost | BM5: Labor Cost | BN5: Labor Cost | BO5: Labor Cost | BP5: Labor Cost | BQ5: Labor Cost | BR5: Labor Cost | BS5: Labor Cost | BT5: Labor Cost | BU5: Labor Cost | BV5: Labor Cost | BW5: Labor Cost | BX5: Labor Cost | BY5: Labor Cost | BZ5: Labor Cost | CA5: Labor Cost | CB5: Labor Cost | CC5: Labor Cost | CD5: Labor Cost | CE5: Labor Cost | CF5: Labor Cost | CG5: Labor Cost | CH5: Labor Cost | CI5: Labor Cost | CJ5: Labor Cost | CK5: Labor Cost
A6: Team | B6: =B3 -> 2010-03-29 | C6: 2010-03-30 | D6: 2010-03-31 | E6: 2010-04-01 | F6: 2010-04-02 | G6: 2010-04-03 | H6: 2010-04-04 | I6: 2010-04-05 | J6: 2010-04-06 | K6: 2010-04-07 | L6: 2010-04-08 | M6: 2010-04-09 | N6: 2010-04-10 | O6: 2010-04-11 | P6: 2010-04-12 | Q6: 2010-04-13 | R6: 2010-04-14 | S6: 2010-04-15 | T6: 2010-04-16 | U6: 2010-04-17 | V6: 2010-04-18 | W6: 2010-04-19 | X6: 2010-04-20 | Y6: 2010-04-21 | Z6: 2010-04-22 | AA6: 2010-04-23 | AB6: 2010-04-24 | AC6: 2010-04-25 | AD6: Hours | AE6: Labor Cost | AG6: =B6 -> 2010-03-29 | AH6: 2010-03-30 | AI6: 2010-03-31 | AJ6: 2010-04-01 | AK6: 2010-04-02 | AL6: 2010-04-03 | AM6: 2010-04-04 | AN6: 2010-04-05 | AO6: 2010-04-06 | AP6: 2010-04-07 | AQ6: 2010-04-08 | AR6: 2010-04-09 | AS6: 2010-04-10 | AT6: 2010-04-11 | AU6: 2010-04-12 | AV6: 2010-04-13 | AW6: 2010-04-14 | AX6: 2010-04-15 | AY6: 2010-04-16 | AZ6: 2010-04-17 | BA6: 2010-04-18 | BB6: 2010-04-19 | BC6: 2010-04-20 | BD6: 2010-04-21 | BE6: 2010-04-22 | BF6: 2010-04-23 | BG6: 2010-04-24 | BH6: 2010-04-25 | BJ6: =AG6 -> 2010-03-29 | BK6: 2010-03-30 | BL6: 2010-03-31 | BM6: 2010-04-01 | BN6: 2010-04-02 | BO6: 2010-04-03 | BP6: 2010-04-04 | BQ6: 2010-04-05 | BR6: 2010-04-06 | BS6: 2010-04-07 | BT6: 2010-04-08 | BU6: 2010-04-09 | BV6: 2010-04-10 | BW6: 2010-04-11 | BX6: 2010-04-12 | BY6: 2010-04-13 | BZ6: 2010-04-14 | CA6: 2010-04-15 | CB6: 2010-04-16 | CC6: 2010-04-17 | CD6: 2010-04-18 | CE6: 2010-04-19 | CF6: 2010-04-20 | CG6: 2010-04-21 | CH6: 2010-04-22 | CI6: 2010-04-23 | CJ6: 2010-04-24 | CK6: 2010-04-25
A7: Team 1 | B7: Shift B | C7: Shift B | D7: Shift B | E7: Shift B | F7: Shift A | J7: Shift B | K7: Shift B | L7: Shift B | M7: Shift B | Q7: Shift B | R7: Shift B | S7: Shift B | T7: Shift B | W7: Shift B | X7: Shift B | Y7: Shift B | Z7: Shift B | AA7: Shift A | AD7: =SUM(AG7:BH7) -> 1600.0 | AE7: =SUM(BJ7:CK7) -> $31,200.00 | AG7: =IF(B7="",0,VLOOKUP(B7, Shifts, 4,FALSE)*HLOOKUP(A7,Teams,3,FALSE)) -> 90 | AH7: =IF(C7="",0,VLOOKUP(C7, Shifts, 4,FALSE)*HLOOKUP(A7,Teams,3,FALSE)) -> 90 | AI7: =IF(D7="",0,VLOOKUP(D7, Shifts, 4,FALSE)*HLOOKUP(A7,Teams,3,FALSE)) -> 90 | AJ7: =IF(E7="",0,VLOOKUP(E7, Shifts, 4,FALSE)*HLOOKUP(A7,Teams,3,FALSE)) -> 90 | AK7: =IF(F7="",0,VLOOKUP(F7, Shifts, 4,FALSE)*HLOOKUP(A7,Teams,3,FALSE)) -> 80 | AL7: =IF(G7="",0,VLOOKUP(G7, Shifts, 4,FALSE)*HLOOKUP(A7,Teams,3,FALSE)) -> 0 | AM7: =IF(H7="",0,VLOOKUP(H7, Shifts, 4,FALSE)*HLOOKUP(A7,Teams,3,FALSE)) -> 0 | AN7: =IF(I7="",0,VLOOKUP(I7, Shifts, 4,FALSE)*HLOOKUP(A7,Teams,3,FALSE)) -> 0 | AO7: =IF(J7="",0,VLOOKUP(J7, Shifts, 4,FALSE)*HLOOKUP(A7,Teams,3,FALSE)) -> 90 | AP7: =IF(K7="",0,VLOOKUP(K7, Shifts, 4,FALSE)*HLOOKUP(A7,Teams,3,FALSE)) -> 90 | AQ7: =IF(L7="",0,VLOOKUP(L7, Shifts, 4,FALSE)*HLOOKUP(A7,Teams,3,FALSE)) -> 90 | AR7: =IF(M7="",0,VLOOKUP(M7, Shifts, 4,FALSE)*HLOOKUP(A7,Teams,3,FALSE)) -> 90 | AS7: =IF(N7="",0,VLOOKUP(N7, Shifts, 4,FALSE)*HLOOKUP(A7,Teams,3,FALSE)) -> 0 | AT7: =IF(O7="",0,VLOOKUP(O7, Shifts, 4,FALSE)*HLOOKUP(A7,Teams,3,FALSE)) -> 0 | AU7: =IF(P7="",0,VLOOKUP(P7, Shifts, 4,FALSE)*HLOOKUP(A7,Teams,3,FALSE)) -> 0 | AV7: =IF(Q7="",0,VLOOKUP(Q7, Shifts, 4,FALSE)*HLOOKUP(A7,Teams,3,FALSE)) -> 90 | AW7: =IF(R7="",0,VLOOKUP(R7, Shifts, 4,FALSE)*HLOOKUP(A7,Teams,3,FALSE)) -> 90 | AX7: =IF(S7="",0,VLOOKUP(S7, Shifts, 4,FALSE)*HLOOKUP(A7,Teams,3,FALSE)) -> 90 | AY7: =IF(T7="",0,VLOOKUP(T7, Shifts, 4,FALSE)*HLOOKUP(A7,Teams,3,FALSE)) -> 90 | AZ7: =IF(U7="",0,VLOOKUP(U7, Shifts, 4,FALSE)*HLOOKUP(A7,Teams,3,FALSE)) -> 0 | BA7: =IF(V7="",0,VLOOKUP(V7, Shifts, 4,FALSE)*HLOOKUP(A7,Teams,3,FALSE)) -> 0 | BB7: =IF(W7="",0,VLOOKUP(W7, Shifts, 4,FALSE)*HLOOKUP(A7,Teams,3,FALSE)) -> 90 | BC7: =IF(X7="",0,VLOOKUP(X7, Shifts, 4,FALSE)*HLOOKUP(A7,Teams,3,FALSE)) -> 90 | BD7: =IF(Y7="",0,VLOOKUP(Y7, Shifts, 4,FALSE)*HLOOKUP(A7,Teams,3,FALSE)) -> 90 | BE7: =IF(Z7="",0,VLOOKUP(Z7, Shifts, 4,FALSE)*HLOOKUP(A7,Teams,3,FALSE)) -> 90 | BF7: =IF(AA7="",0,VLOOKUP(AA7, Shifts, 4,FALSE)*HLOOKUP(A7,Teams,3,FALSE)) -> 80 | BG7: =IF(AB7="",0,VLOOKUP(AB7, Shifts, 4,FALSE)*HLOOKUP(A7,Teams,3,FALSE)) -> 0 | BH7: =IF(AC7="",0,VLOOKUP(AC7, Shifts, 4,FALSE)*HLOOKUP(A7,Teams,3,FALSE)) -> 0 | BJ7: =AG7*IF(B7="", 0, HLOOKUP(A7,Teams,4,FALSE)) -> 1755 | BK7: =AH7*IF(C7="", 0, HLOOKUP(A7,Teams,4,FALSE)) -> 1755 | BL7: =AI7*IF(D7="", 0, HLOOKUP(A7,Teams,4,FALSE)) -> 1755 | BM7: =AJ7*IF(E7="", 0, HLOOKUP(A7,Teams,4,FALSE)) -> 1755 | BN7: =AK7*IF(F7="", 0, HLOOKUP(A7,Teams,4,FALSE)) -> 1560 | BO7: =AL7*IF(G7="", 0, HLOOKUP(A7,Teams,4,FALSE)) -> 0 | BP7: =AM7*IF(H7="", 0, HLOOKUP(A7,Teams,4,FALSE)) -> 0 | BQ7: =AN7*IF(I7="", 0, HLOOKUP(A7,Teams,4,FALSE)) -> 0 | BR7: =AO7*IF(J7="", 0, HLOOKUP(A7,Teams,4,FALSE)) -> 1755 | BS7: =AP7*IF(K7="", 0, HLOOKUP(A7,Teams,4,FALSE)) -> 1755 | BT7: =AQ7*IF(L7="", 0, HLOOKUP(A7,Teams,4,FALSE)) -> 1755 | BU7: =AR7*IF(M7="", 0, HLOOKUP(A7,Teams,4,FALSE)) -> 1755 | BV7: =AS7*IF(N7="", 0, HLOOKUP(A7,Teams,4,FALSE)) -> 0 | BW7: =AT7*IF(O7="", 0, HLOOKUP(A7,Teams,4,FALSE)) -> 0 | BX7: =AU7*IF(P7="", 0, HLOOKUP(A7,Teams,4,FALSE)) -> 0 | BY7: =AV7*IF(Q7="", 0, HLOOKUP(A7,Teams,4,FALSE)) -> 1755 | BZ7: =AW7*IF(R7="", 0, HLOOKUP(A7,Teams,4,FALSE)) -> 1755 | CA7: =AX7*IF(S7="", 0, HLOOKUP(A7,Teams,4,FALSE)) -> 1755 | CB7: =AY7*IF(T7="", 0, HLOOKUP(A7,Teams,4,FALSE)) -> 1755 | CC7: =AZ7*IF(U7="", 0, HLOOKUP(A7,Teams,4,FALSE)) -> 0 | CD7: =BA7*IF(V7="", 0, HLOOKUP(A7,Teams,4,FALSE)) -> 0 | CE7: =BB7*IF(W7="", 0, HLOOKUP(A7,Teams,4,FALSE)) -> 1755 | CF7: =BC7*IF(X7="", 0, HLOOKUP(A7,Teams,4,FALSE)) -> 1755 | CG7: =BD7*IF(Y7="", 0, HLOOKUP(A7,Teams,4,FALSE)) -> 1755 | CH7: =BE7*IF(Z7="", 0, HLOOKUP(A7,Teams,4,FALSE)) -> 1755 | CI7: =BF7*IF(AA7="", 0, HLOOKUP(A7,Teams,4,FALSE)) -> 1560 | CJ7: =BG7*IF(AB7="", 0, HLOOKUP(A7,Teams,4,FALSE)) -> 0 | CK7: =BH7*IF(AC7="", 0, HLOOKUP(A7,Teams,4,FALSE)) -> 0
A8: Team 2 | C8: Shift B | D8: Shift B | E8: Shift B | F8: Shift B | I8: Shift B | J8: Shift B | K8: Shift B | L8: Shift B | M8: Shift A | P8: Shift B | Q8: Shift B | R8: Shift B | S8: Shift B | T8: Shift A | X8: Shift B | Y8: Shift B | Z8: Shift B | AA8: Shift B | AD8: =SUM(AG8:BH8) -> 1600.0 | AE8: =SUM(BJ8:CK8) -> $47,200.00 | AG8: 0 | AH8: =IF(C8="",0,VLOOKUP(C8, Shifts, 4,FALSE)*HLOOKUP(A8,Teams,3,FALSE)) -> 90 | AI8: =IF(D8="",0,VLOOKUP(D8, Shifts, 4,FALSE)*HLOOKUP(A8,Teams,3,FALSE)) -> 90 | AJ8: 90 | AK8: 90 | AL8: 0 | AM8: 0 | AN8: 90 | AO8: 90 | AP8: 90 | AQ8: 90 | AR8: 80 | AS8: 0 | AT8: 0 | AU8: 90 | AV8: 90 | AW8: 90 | AX8: 90 | AY8: 80 | AZ8: 0 | BA8: 0 | BB8: 0 | BC8: 90 | BD8: 90 | BE8: 90 | BF8: 90 | BG8: 0 | BH8: 0 | BJ8: 0 | BK8: =AH8*IF(C8="", 0, HLOOKUP(A8,Teams,4,FALSE)) -> 2655 | BL8: =AI8*IF(D8="", 0, HLOOKUP(A8,Teams,4,FALSE)) -> 2655 | BM8: 2655 | BN8: 2655 | BO8: 0 | BP8: 0 | BQ8: 2655 | BR8: 2655 | BS8: 2655 | BT8: 2655 | BU8: 2360 | BV8: 0 | BW8: 0 | BX8: 2655 | BY8: 2655 | BZ8: 2655 | CA8: 2655 | CB8: 2360 | CC8: 0 | CD8: 0 | CE8: 0 | CF8: 2655 | CG8: 2655 | CH8: 2655 | CI8: 2655 | CJ8: 0 | CK8: 0
A9: Team 3 | AD9: =SUM(AG9:BH9) -> 0.0 | AE9: =SUM(BJ9:CK9) -> $0.00 | AG9: 0 | AH9: 0 | AI9: 0 | AJ9: 0 | AK9: 0 | AL9: 0 | AM9: 0 | AN9: 0 | AO9: 0 | AP9: 0 | AQ9: 0 | AR9: 0 | AS9: 0 | AT9: 0 | AU9: 0 | AV9: 0 | AW9: 0 | AX9: 0 | AY9: 0 | AZ9: 0 | BA9: 0 | BB9: 0 | BC9: 0 | BD9: 0 | BE9: 0 | BF9: 0 | BG9: 0 | BH9: 0 | BJ9: 0 | BK9: 0 | BL9: 0 | BM9: 0 | BN9: 0 | BO9: 0 | BP9: 0 | BQ9: 0 | BR9: 0 | BS9: 0 | BT9: 0 | BU9: 0 | BV9: 0 | BW9: 0 | BX9: 0 | BY9: 0 | BZ9: 0 | CA9: 0 | CB9: 0 | CC9: 0 | CD9: 0 | CE9: 0 | CF9: 0 | CG9: 0 | CH9: 0 | CI9: 0 | CJ9: 0 | CK9: 0
A10: Team 4 | AD10: =SUM(AG10:BH10) -> 0.0 | AE10: =SUM(BJ10:CK10) -> $0.00 | AG10: 0 | AH10: 0 | AI10: 0 | AJ10: 0 | AK10: 0 | AL10: 0 | AM10: 0 | AN10: 0 | AO10: 0 | AP10: 0 | AQ10: 0 | AR10: 0 | AS10: 0 | AT10: 0 | AU10: 0 | AV10: 0 | AW10: 0 | AX10: 0 | AY10: 0 | AZ10: 0 | BA10: 0 | BB10: 0 | BC10: 0 | BD10: 0 | BE10: 0 | BF10: 0 | BG10: 0 | BH10: 0 | BJ10: 0 | BK10: 0 | BL10: 0 | BM10: 0 | BN10: 0 | BO10: 0 | BP10: 0 | BQ10: 0 | BR10: 0 | BS10: 0 | BT10: 0 | BU10: 0 | BV10: 0 | BW10: 0 | BX10: 0 | BY10: 0 | BZ10: 0 | CA10: 0 | CB10: 0 | CC10: 0 | CD10: 0 | CE10: 0 | CF10: 0 | CG10: 0 | CH10: 0 | CI10: 0 | CJ10: 0 | CK10: 0
AD11: =SUM(AG11:BD11) -> 0.0 | AE11: =SUM(BJ11:CG11) -> $0.00 | AG11: 0 | AH11: 0 | AI11: 0 | AJ11: 0 | AK11: 0 | AL11: 0 | AM11: 0 | AN11: 0 | AO11: 0 | AP11: 0 | AQ11: 0 | AR11: 0 | AS11: 0 | AT11: 0 | AU11: 0 | AV11: 0 | AW11: 0 | AX11: 0 | AY11: 0 | AZ11: 0 | BA11: 0 | BB11: 0 | BC11: 0 | BD11: 0 | BE11: 0 | BF11: 0 | BG11: 0 | BH11: 0 | BJ11: 0 | BK11: 0 | BL11: 0 | BM11: 0 | BN11: 0 | BO11: 0 | BP11: 0 | BQ11: 0 | BR11: 0 | BS11: 0 | BT11: 0 | BU11: 0 | BV11: 0 | BW11: 0 | BX11: 0 | BY11: 0 | BZ11: 0 | CA11: 0 | CB11: 0 | CC11: 0 | CD11: 0 | CE11: 0 | CF11: 0 | CG11: 0 | CH11: 0 | CI11: 0 | CJ11: 0 | CK11: 0
AD12: 0.0 | AE12: $0.00 | AG12: 0 | AH12: 0 | AI12: 0 | AJ12: 0 | AK12: 0 | AL12: 0 | AM12: 0 | AN12: 0 | AO12: 0 | AP12: 0 | AQ12: 0 | AR12: 0 | AS12: 0 | AT12: 0 | AU12: 0 | AV12: 0 | AW12: 0 | AX12: 0 | AY12: 0 | AZ12: 0 | BA12: 0 | BB12: 0 | BC12: 0 | BD12: 0 | BE12: 0 | BF12: 0 | BG12: 0 | BH12: 0 | BJ12: 0 | BK12: 0 | BL12: 0 | BM12: 0 | BN12: 0 | BO12: 0 | BP12: 0 | BQ12: 0 | BR12: 0 | BS12: 0 | BT12: 0 | BU12: 0 | BV12: 0 | BW12: 0 | BX12: 0 | BY12: 0 | BZ12: 0 | CA12: 0 | CB12: 0 | CC12: 0 | CD12: 0 | CE12: 0 | CF12: 0 | CG12: 0 | CH12: 0 | CI12: 0 | CJ12: 0 | CK12: 0
AD13: 0.0 | AE13: $0.00 | AG13: 0 | AH13: 0 | AI13: 0 | AJ13: 0 | AK13: 0 | AL13: 0 | AM13: 0 | AN13: 0 | AO13: 0 | AP13: 0 | AQ13: 0 | AR13: 0 | AS13: 0 | AT13: 0 | AU13: 0 | AV13: 0 | AW13: 0 | AX13: 0 | AY13: 0 | AZ13: 0 | BA13: 0 | BB13: 0 | BC13: 0 | BD13: 0 | BE13: 0 | BF13: 0 | BG13: 0 | BH13: 0 | BJ13: 0 | BK13: 0 | BL13: 0 | BM13: 0 | BN13: 0 | BO13: 0 | BP13: 0 | BQ13: 0 | BR13: 0 | BS13: 0 | BT13: 0 | BU13: 0 | BV13: 0 | BW13: 0 | BX13: 0 | BY13: 0 | BZ13: 0 | CA13: 0 | CB13: 0 | CC13: 0 | CD13: 0 | CE13: 0 | CF13: 0 | CG13: 0 | CH13: 0 | CI13: 0 | CJ13: 0 | CK13: 0
AD14: 0.0 | AE14: $0.00 | AG14: 0 | AH14: 0 | AI14: 0 | AJ14: 0 | AK14: 0 | AL14: 0 | AM14: 0 | AN14: 0 | AO14: 0 | AP14: 0 | AQ14: 0 | AR14: 0 | AS14: 0 | AT14: 0 | AU14: 0 | AV14: 0 | AW14: 0 | AX14: 0 | AY14: 0 | AZ14: 0 | BA14: 0 | BB14: 0 | BC14: 0 | BD14: 0 | BE14: 0 | BF14: 0 | BG14: 0 | BH14: 0 | BJ14: 0 | BK14: 0 | BL14: 0 | BM14: 0 | BN14: 0 | BO14: 0 | BP14: 0 | BQ14: 0 | BR14: 0 | BS14: 0 | BT14: 0 | BU14: 0 | BV14: 0 | BW14: 0 | BX14: 0 | BY14: 0 | BZ14: 0 | CA14: 0 | CB14: 0 | CC14: 0 | CD14: 0 | CE14: 0 | CF14: 0 | CG14: 0 | CH14: 0 | CI14: 0 | CJ14: 0 | CK14: 0
AD15: 0.0 | AE15: $0.00 | AG15: 0 | AH15: 0 | AI15: 0 | AJ15: 0 | AK15: 0 | AL15: 0 | AM15: 0 | AN15: 0 | AO15: 0 | AP15: 0 | AQ15: 0 | AR15: 0 | AS15: 0 | AT15: 0 | AU15: 0 | AV15: 0 | AW15: 0 | AX15: 0 | AY15: 0 | AZ15: 0 | BA15: 0 | BB15: 0 | BC15: 0 | BD15: 0 | BE15: 0 | BF15: 0 | BG15: 0 | BH15: 0 | BJ15: 0 | BK15: 0 | BL15: 0 | BM15: 0 | BN15: 0 | BO15: 0 | BP15: 0 | BQ15: 0 | BR15: 0 | BS15: 0 | BT15: 0 | BU15: 0 | BV15: 0 | BW15: 0 | BX15: 0 | BY15: 0 | BZ15: 0 | CA15: 0 | CB15: 0 | CC15: 0 | CD15: 0 | CE15: 0 | CF15: 0 | CG15: 0 | CH15: 0 | CI15: 0 | CJ15: 0 | CK15: 0
AD16: 0.0 | AE16: $0.00 | AG16: 0 | AH16: 0 | AI16: 0 | AJ16: 0 | AK16: 0 | AL16: 0 | AM16: 0 | AN16: 0 | AO16: 0 | AP16: 0 | AQ16: 0 | AR16: 0 | AS16: 0 | AT16: 0 | AU16: 0 | AV16: 0 | AW16: 0 | AX16: 0 | AY16: 0 | AZ16: 0 | BA16: 0 | BB16: 0 | BC16: 0 | BD16: 0 | BE16: 0 | BF16: 0 | BG16: 0 | BH16: 0 | BJ16: 0 | BK16: 0 | BL16: 0 | BM16: 0 | BN16: 0 | BO16: 0 | BP16: 0 | BQ16: 0 | BR16: 0 | BS16: 0 | BT16: 0 | BU16: 0 | BV16: 0 | BW16: 0 | BX16: 0 | BY16: 0 | BZ16: 0 | CA16: 0 | CB16: 0 | CC16: 0 | CD16: 0 | CE16: 0 | CF16: 0 | CG16: 0 | CH16: 0 | CI16: 0 | CJ16: 0 | CK16: 0
AD17: 0.0 | AE17: $0.00 | AG17: 0 | AH17: 0 | AI17: 0 | AJ17: 0 | AK17: 0 | AL17: 0 | AM17: 0 | AN17: 0 | AO17: 0 | AP17: 0 | AQ17: 0 | AR17: 0 | AS17: 0 | AT17: 0 | AU17: 0 | AV17: 0 | AW17: 0 | AX17: 0 | AY17: 0 | AZ17: 0 | BA17: 0 | BB17: 0 | BC17: 0 | BD17: 0 | BE17: 0 | BF17: 0 | BG17: 0 | BH17: 0 | BJ17: 0 | BK17: 0 | BL17: 0 | BM17: 0 | BN17: 0 | BO17: 0 | BP17: 0 | BQ17: 0 | BR17: 0 | BS17: 0 | BT17: 0 | BU17: 0 | BV17: 0 | BW17: 0 | BX17: 0 | BY17: 0 | BZ17: 0 | CA17: 0 | CB17: 0 | CC17: 0 | CD17: 0 | CE17: 0 | CF17: 0 | CG17: 0 | CH17: 0 | CI17: 0 | CJ17: 0 | CK17: 0
AD18: 0.0 | AE18: $0.00 | AG18: 0 | AH18: 0 | AI18: 0 | AJ18: 0 | AK18: 0 | AL18: 0 | AM18: 0 | AN18: 0 | AO18: 0 | AP18: 0 | AQ18: 0 | AR18: 0 | AS18: 0 | AT18: 0 | AU18: 0 | AV18: 0 | AW18: 0 | AX18: 0 | AY18: 0 | AZ18: 0 | BA18: 0 | BB18: 0 | BC18: 0 | BD18: 0 | BE18: 0 | BF18: 0 | BG18: 0 | BH18: 0 | BJ18: 0 | BK18: 0 | BL18: 0 | BM18: 0 | BN18: 0 | BO18: 0 | BP18: 0 | BQ18: 0 | BR18: 0 | BS18: 0 | BT18: 0 | BU18: 0 | BV18: 0 | BW18: 0 | BX18: 0 | BY18: 0 | BZ18: 0 | CA18: 0 | CB18: 0 | CC18: 0 | CD18: 0 | CE18: 0 | CF18: 0 | CG18: 0 | CH18: 0 | CI18: 0 | CJ18: 0 | CK18: 0
AD19: 0.0 | AE19: $0.00 | AG19: 0 | AH19: 0 | AI19: 0 | AJ19: 0 | AK19: 0 | AL19: 0 | AM19: 0 | AN19: 0 | AO19: 0 | AP19: 0 | AQ19: 0 | AR19: 0 | AS19: 0 | AT19: 0 | AU19: 0 | AV19: 0 | AW19: 0 | AX19: 0 | AY19: 0 | AZ19: 0 | BA19: 0 | BB19: 0 | BC19: 0 | BD19: 0 | BE19: 0 | BF19: 0 | BG19: 0 | BH19: 0 | BJ19: 0 | BK19: 0 | BL19: 0 | BM19: 0 | BN19: 0 | BO19: 0 | BP19: 0 | BQ19: 0 | BR19: 0 | BS19: 0 | BT19: 0 | BU19: 0 | BV19: 0 | BW19: 0 | BX19: 0 | BY19: 0 | BZ19: 0 | CA19: 0 | CB19: 0 | CC19: 0 | CD19: 0 | CE19: 0 | CF19: 0 | CG19: 0 | CH19: 0 | CI19: 0 | CJ19: 0 | CK19: 0
AD20: 0.0 | AE20: $0.00 | AG20: 0 | AH20: 0 | AI20: 0 | AJ20: 0 | AK20: 0 | AL20: 0 | AM20: 0 | AN20: 0 | AO20: 0 | AP20: 0 | AQ20: 0 | AR20: 0 | AS20: 0 | AT20: 0 | AU20: 0 | AV20: 0 | AW20: 0 | AX20: 0 | AY20: 0 | AZ20: 0 | BA20: 0 | BB20: 0 | BC20: 0 | BD20: 0 | BE20: 0 | BF20: 0 | BG20: 0 | BH20: 0 | BJ20: 0 | BK20: 0 | BL20: 0 | BM20: 0 | BN20: 0 | BO20: 0 | BP20: 0 | BQ20: 0 | BR20: 0 | BS20: 0 | BT20: 0 | BU20: 0 | BV20: 0 | BW20: 0 | BX20: 0 | BY20: 0 | BZ20: 0 | CA20: 0 | CB20: 0 | CC20: 0 | CD20: 0 | CE20: 0 | CF20: 0 | CG20: 0 | CH20: 0 | CI20: 0 | CJ20: 0 | CK20: 0
AD21: 0.0 | AE21: $0.00 | AG21: 0 | AH21: 0 | AI21: 0 | AJ21: 0 | AK21: 0 | AL21: 0 | AM21: 0 | AN21: 0 | AO21: 0 | AP21: 0 | AQ21: 0 | AR21: 0 | AS21: 0 | AT21: 0 | AU21: 0 | AV21: 0 | AW21: 0 | AX21: 0 | AY21: 0 | AZ21: 0 | BA21: 0 | BB21: 0 | BC21: 0 | BD21: 0 | BE21: 0 | BF21: 0 | BG21: 0 | BH21: 0 | BJ21: 0 | BK21: 0 | BL21: 0 | BM21: 0 | BN21: 0 | BO21: 0 | BP21: 0 | BQ21: 0 | BR21: 0 | BS21: 0 | BT21: 0 | BU21: 0 | BV21: 0 | BW21: 0 | BX21: 0 | BY21: 0 | BZ21: 0 | CA21: 0 | CB21: 0 | CC21: 0 | CD21: 0 | CE21: 0 | CF21: 0 | CG21: 0 | CH21: 0 | CI21: 0 | CJ21: 0 | CK21: 0
AD22: 0.0 | AE22: $0.00 | AG22: 0 | AH22: 0 | AI22: 0 | AJ22: 0 | AK22: 0 | AL22: 0 | AM22: 0 | AN22: 0 | AO22: 0 | AP22: 0 | AQ22: 0 | AR22: 0 | AS22: 0 | AT22: 0 | AU22: 0 | AV22: 0 | AW22: 0 | AX22: 0 | AY22: 0 | AZ22: 0 | BA22: 0 | BB22: 0 | BC22: 0 | BD22: 0 | BE22: 0 | BF22: 0 | BG22: 0 | BH22: 0 | BJ22: 0 | BK22: 0 | BL22: 0 | BM22: 0 | BN22: 0 | BO22: 0 | BP22: 0 | BQ22: 0 | BR22: 0 | BS22: 0 | BT22: 0 | BU22: 0 | BV22: 0 | BW22: 0 | BX22: 0 | BY22: 0 | BZ22: 0 | CA22: 0 | CB22: 0 | CC22: 0 | CD22: 0 | CE22: 0 | CF22: 0 | CG22: 0 | CH22: 0 | CI22: 0 | CJ22: 0 | CK22: 0
AD23: 0.0 | AE23: $0.00 | AG23: 0 | AH23: 0 | AI23: 0 | AJ23: 0 | AK23: 0 | AL23: 0 | AM23: 0 | AN23: 0 | AO23: 0 | AP23: 0 | AQ23: 0 | AR23: 0 | AS23: 0 | AT23: 0 | AU23: 0 | AV23: 0 | AW23: 0 | AX23: 0 | AY23: 0 | AZ23: 0 | BA23: 0 | BB23: 0 | BC23: 0 | BD23: 0 | BE23: 0 | BF23: 0 | BG23: 0 | BH23: 0 | BJ23: 0 | BK23: 0 | BL23: 0 | BM23: 0 | BN23: 0 | BO23: 0 | BP23: 0 | BQ23: 0 | BR23: 0 | BS23: 0 | BT23: 0 | BU23: 0 | BV23: 0 | BW23: 0 | BX23: 0 | BY23: 0 | BZ23: 0 | CA23: 0 | CB23: 0 | CC23: 0 | CD23: 0 | CE23: 0 | CF23: 0 | CG23: 0 | CH23: 0 | CI23: 0 | CJ23: 0 | CK23: 0
AD24: 0.0 | AE24: $0.00 | AG24: 0 | AH24: 0 | AI24: 0 | AJ24: 0 | AK24: 0 | AL24: 0 | AM24: 0 | AN24: 0 | AO24: 0 | AP24: 0 | AQ24: 0 | AR24: 0 | AS24: 0 | AT24: 0 | AU24: 0 | AV24: 0 | AW24: 0 | AX24: 0 | AY24: 0 | AZ24: 0 | BA24: 0 | BB24: 0 | BC24: 0 | BD24: 0 | BE24: 0 | BF24: 0 | BG24: 0 | BH24: 0 | BJ24: 0 | BK24: 0 | BL24: 0 | BM24: 0 | BN24: 0 | BO24: 0 | BP24: 0 | BQ24: 0 | BR24: 0 | BS24: 0 | BT24: 0 | BU24: 0 | BV24: 0 | BW24: 0 | BX24: 0 | BY24: 0 | BZ24: 0 | CA24: 0 | CB24: 0 | CC24: 0 | CD24: 0 | CE24: 0 | CF24: 0 | CG24: 0 | CH24: 0 | CI24: 0 | CJ24: 0 | CK24: 0
AD25: 0.0 | AE25: $0.00 | AG25: 0 | AH25: 0 | AI25: 0 | AJ25: 0 | AK25: 0 | AL25: 0 | AM25: 0 | AN25: 0 | AO25: 0 | AP25: 0 | AQ25: 0 | AR25: 0 | AS25: 0 | AT25: 0 | AU25: 0 | AV25: 0 | AW25: 0 | AX25: 0 | AY25: 0 | AZ25: 0 | BA25: 0 | BB25: 0 | BC25: 0 | BD25: 0 | BE25: 0 | BF25: 0 | BG25: 0 | BH25: 0 | BJ25: 0 | BK25: 0 | BL25: 0 | BM25: 0 | BN25: 0 | BO25: 0 | BP25: 0 | BQ25: 0 | BR25: 0 | BS25: 0 | BT25: 0 | BU25: 0 | BV25: 0 | BW25: 0 | BX25: 0 | BY25: 0 | BZ25: 0 | CA25: 0 | CB25: 0 | CC25: 0 | CD25: 0 | CE25: 0 | CF25: 0 | CG25: 0 | CH25: 0 | CI25: 0 | CJ25: 0 | CK25: 0
AD26: 0.0 | AE26: $0.00 | AG26: 0 | AH26: 0 | AI26: 0 | AJ26: 0 | AK26: 0 | AL26: 0 | AM26: 0 | AN26: 0 | AO26: 0 | AP26: 0 | AQ26: 0 | AR26: 0 | AS26: 0 | AT26: 0 | AU26: 0 | AV26: 0 | AW26: 0 | AX26: 0 | AY26: 0 | AZ26: 0 | BA26: 0 | BB26: 0 | BC26: 0 | BD26: 0 | BE26: 0 | BF26: 0 | BG26: 0 | BH26: 0 | BJ26: 0 | BK26: 0 | BL26: 0 | BM26: 0 | BN26: 0 | BO26: 0 | BP26: 0 | BQ26: 0 | BR26: 0 | BS26: 0 | BT26: 0 | BU26: 0 | BV26: 0 | BW26: 0 | BX26: 0 | BY26: 0 | BZ26: 0 | CA26: 0 | CB26: 0 | CC26: 0 | CD26: 0 | CE26: 0 | CF26: 0 | CG26: 0 | CH26: 0 | CI26: 0 | CJ26: 0 | CK26: 0
A27: Total Paid Hours | B27: =SUM(AG7:AG26) -> 90.0 | C27: 180.0 | D27: =SUM(AI7:AI26) -> 180.0 | E27: 180.0 | F27: 170.0 | G27: 0.0 | H27: 0.0 | I27: 90.0 | J27: 180.0 | K27: 180.0 | L27: 180.0 | M27: 170.0 | N27: 0.0 | O27: 0.0 | P27: 90.0 | Q27: =SUM(AV7:AV26) -> 180.0 | R27: 180.0 | S27: 180.0 | T27: 170.0 | U27: 0.0 | V27: 0.0 | W27: 90.0 | X27: 180.0 | Y27: 180.0 | Z27: 180.0 | AA27: 170.0 | AB27: 0.0 | AC27: 0.0 | AD27: =SUM(AD7:AD26) -> 3,200.0
A28: Daily Labor Cost | B28: =SUM(BJ7:BJ26) -> $1,755.00 | C28: $4,410.00 | D28: $4,410.00 | E28: =SUM(BM7:BM26) -> $4,410.00 | F28: $4,215.00 | G28: $0.00 | H28: $0.00 | I28: $2,655.00 | J28: $4,410.00 | K28: $4,410.00 | L28: $4,410.00 | M28: $4,115.00 | N28: $0.00 | O28: $0.00 | P28: $2,655.00 | Q28: $4,410.00 | R28: $4,410.00 | S28: $4,410.00 | T28: $4,115.00 | U28: $0.00 | V28: $0.00 | W28: $1,755.00 | X28: $4,410.00 | Y28: $4,410.00 | Z28: $4,410.00 | AA28: $4,215.00 | AB28: $0.00 | AC28: $0.00 | AE28: =SUM(AE7:AE26) -> $78,400.00
A31: Notes:
A32: 1) This worksheet is protected to prevent accidental deletion of the underlying formulas in summary cells. The password used is "password"
A33: 2) Do not change the shift patterns as they are required to implement the work schedule. Use the Teams worksheet to assign employees to teams.

Sheet Shifts
A2: Shift | B2: Starts | C2: Ends | D2: Paid Hrs
A3: Shift A | B3: 7:00AM | C3: 3:00PM | D3: 8
A4: Shift B | B4: 7:00AM | C4: 4:00PM | D4: 9
A7: Notes:
A8: 1) Change shift start times, end times, and payable work hours as needed to match your operations.

Sheet Employees
A2: Employee | B2: Hourly Rate
A3: Employee 1 | B3: $15.00
A4: Employee 2 | B4: $16.00
A5: Employee 3 | B5: $17.00
A6: Employee 4 | B6: $18.00
A7: Employee 5 | B7: $19.00
A8: Employee 6 | B8: $20.00
A9: Employee 7 | B9: $21.00
A10: Employee 8 | B10: $22.00
A11: Employee 9 | B11: $23.00
A12: Employee 10 | B12: $24.00
A13: Employee 11 | B13: $25.00
A14: Employee 12 | B14: $26.00
A15: Employee 13 | B15: $27.00
A16: Employee 14 | B16: $28.00
A17: Employee 15 | B17: $29.00
A18: Employee 16 | B18: $30.00
A19: Employee 17 | B19: $31.00
A20: Employee 18 | B20: $32.00
A21: Employee 19 | B21: $33.00
A22: Employee 20 | B22: $34.00
A24: Notes:
A25: 1) Change employee names and hourly rates as needed to reflect your actual data. A maximum of 20 employees is allowed.

Sheet Teams
A2: Position | B2: Team 1 | C2: Team 2 | E2: Hourly Rate A | F2: Hourly Rate B | G2: Hourly Rate C | H2: Hourly Rate D
A3: Sum | B3: =SUM(E6:E25) -> $195.00 | C3: =SUM(F6:F25) -> $295.00
A4: Count | B4: =COUNTA(B6:B25) -> 10 | C4: =COUNTA(C6:C25) -> 10
A5: Avg | B5: =IF(B4=0,0,B3/B4) -> $19.50 | C5: =IF(C4=0,0,C3/C4) -> $29.50
A6: 1 | B6: Employee 1 | C6: Employee 11 | E6: =IF(B6="", 0, VLOOKUP(B6,Employees,2,FALSE)) -> $15.00 | F6: =IF(C6="", 0, VLOOKUP(C6,Employees,2,FALSE)) -> $25.00 | G6: =IF(#REF!="", 0, VLOOKUP(#REF!,Employees,2,FALSE)) ->  | H6: =IF(#REF!="", 0, VLOOKUP(#REF!,Employees,2,FALSE)) -> 
A7: 2 | B7: Employee 2 | C7: Employee 12 | E7: $16.00 | F7: $26.00 | G7: =IF(#REF!="", 0, VLOOKUP(#REF!,Employees,2,FALSE)) ->  | H7: =IF(#REF!="", 0, VLOOKUP(#REF!,Employees,2,FALSE)) -> 
A8: 3 | B8: Employee 3 | C8: Employee 13 | E8: $17.00 | F8: $27.00 | G8: =IF(#REF!="", 0, VLOOKUP(#REF!,Employees,2,FALSE)) ->  | H8: =IF(#REF!="", 0, VLOOKUP(#REF!,Employees,2,FALSE)) -> 
A9: 4 | B9: Employee 4 | C9: Employee 14 | E9: $18.00 | F9: $28.00 | G9: =IF(#REF!="", 0, VLOOKUP(#REF!,Employees,2,FALSE)) ->  | H9: =IF(#REF!="", 0, VLOOKUP(#REF!,Employees,2,FALSE)) -> 
A10: 5 | B10: Employee 5 | C10: Employee 15 | E10: $19.00 | F10: $29.00 | G10: =IF(#REF!="", 0, VLOOKUP(#REF!,Employees,2,FALSE)) ->  | H10: =IF(#REF!="", 0, VLOOKUP(#REF!,Employees,2,FALSE)) -> 
A11: 6 | B11: Employee 6 | C11: Employee 16 | E11: $20.00 | F11: $30.00 | G11: =IF(#REF!="", 0, VLOOKUP(#REF!,Employees,2,FALSE)) ->  | H11: =IF(#REF!="", 0, VLOOKUP(#REF!,Employees,2,FALSE)) -> 
A12: 7 | B12: Employee 7 | C12: Employee 17 | E12: $21.00 | F12: $31.00 | G12: =IF(#REF!="", 0, VLOOKUP(#REF!,Employees,2,FALSE)) ->  | H12: =IF(#REF!="", 0, VLOOKUP(#REF!,Employees,2,FALSE)) -> 
A13: 8 | B13: Employee 8 | C13: Employee 18 | E13: $22.00 | F13: $32.00 | G13: =IF(#REF!="", 0, VLOOKUP(#REF!,Employees,2,FALSE)) ->  | H13: =IF(#REF!="", 0, VLOOKUP(#REF!,Employees,2,FALSE)) -> 
A14: 9 | B14: Employee 9 | C14: Employee 19 | E14: $23.00 | F14: $33.00 | G14: =IF(#REF!="", 0, VLOOKUP(#REF!,Employees,2,FALSE)) ->  | H14: =IF(#REF!="", 0, VLOOKUP(#REF!,Employees,2,FALSE)) -> 
A15: 10 | B15: Employee 10 | C15: Employee 20 | E15: $24.00 | F15: $34.00 | G15: =IF(#REF!="", 0, VLOOKUP(#REF!,Employees,2,FALSE)) ->  | H15: =IF(#REF!="", 0, VLOOKUP(#REF!,Employees,2,FALSE)) -> 
A16: 11 | E16: $0.00 | F16: $0.00 | G16: =IF(#REF!="", 0, VLOOKUP(#REF!,Employees,2,FALSE)) ->  | H16: =IF(#REF!="", 0, VLOOKUP(#REF!,Employees,2,FALSE)) -> 
A17: 12 | E17: $0.00 | F17: $0.00 | G17: =IF(#REF!="", 0, VLOOKUP(#REF!,Employees,2,FALSE)) ->  | H17: =IF(#REF!="", 0, VLOOKUP(#REF!,Employees,2,FALSE)) -> 
A18: 13 | E18: $0.00 | F18: $0.00 | G18: =IF(#REF!="", 0, VLOOKUP(#REF!,Employees,2,FALSE)) ->  | H18: =IF(#REF!="", 0, VLOOKUP(#REF!,Employees,2,FALSE)) -> 
A19: 14 | E19: $0.00 | F19: $0.00 | G19: =IF(#REF!="", 0, VLOOKUP(#REF!,Employees,2,FALSE)) ->  | H19: =IF(#REF!="", 0, VLOOKUP(#REF!,Employees,2,FALSE)) -> 
A20: 15 | E20: $0.00 | F20: $0.00 | G20: =IF(#REF!="", 0, VLOOKUP(#REF!,Employees,2,FALSE)) ->  | H20: =IF(#REF!="", 0, VLOOKUP(#REF!,Employees,2,FALSE)) -> 
A21: 16 | E21: $0.00 | F21: $0.00 | G21: =IF(#REF!="", 0, VLOOKUP(#REF!,Employees,2,FALSE)) ->  | H21: =IF(#REF!="", 0, VLOOKUP(#REF!,Employees,2,FALSE)) -> 
A22: 17 | E22: $0.00 | F22: $0.00 | G22: =IF(#REF!="", 0, VLOOKUP(#REF!,Employees,2,FALSE)) ->  | H22: =IF(#REF!="", 0, VLOOKUP(#REF!,Employees,2,FALSE)) -> 
A23: 18 | E23: $0.00 | F23: $0.00 | G23: =IF(#REF!="", 0, VLOOKUP(#REF!,Employees,2,FALSE)) ->  | H23: =IF(#REF!="", 0, VLOOKUP(#REF!,Employees,2,FALSE)) -> 
A24: 19 | E24: $0.00 | F24: $0.00 | G24: =IF(#REF!="", 0, VLOOKUP(#REF!,Employees,2,FALSE)) ->  | H24: =IF(#REF!="", 0, VLOOKUP(#REF!,Employees,2,FALSE)) -> 
A25: 20 | E25: $0.00 | F25: $0.00 | G25: =IF(#REF!="", 0, VLOOKUP(#REF!,Employees,2,FALSE)) ->  | H25: =IF(#REF!="", 0, VLOOKUP(#REF!,Employees,2,FALSE)) -> 
A28: Notes:
A29: 1) Change or delete the employee assignments under each team as needed to reflect your actual data. You should have an equal number of employees under each team to provide a balanced coverage. Up to 10 employees are allowed in each team.

Sheet Additional Info
A2: This is a simple employee scheduling template for creating and printing 5/4-9 compressed work schedules. Work hours and labor costs are automatically computed based on the prescribed shift patterns, the number of employees on each team, and labor rates.
A3: The 5/4-9 work schedule, also known as the Flexible 5/4-9 Work Schedule, allows employees to fulfill their work requirement of 80 hours in a biweekly pay period over nine workdays (i.e., five days one week and four days the other week). For eight of the workdays, an employee works nine hours and for one workday, the employee works eight hours and has one regular day off each biweekly pay period.
